fUST/lending_fUST_20250729
["ID","MTS","AMOUNT","RATE_DAILY","PERIOD"]
[375859424,1753763444763,-460.0,0.00019726,2]
[375859425,1753763444773,-460.0,0.00019726,2]
[375859426,1753763444783,-460.0,0.00019726,2]
[375859427,1753763444792,-771.0,0.00019726,2]
[375859428,1753763444803,-460.0,0.00019726,2]
[375859429,1753763444813,-616.93,0.00019726,2]
[375859430,1753763444824,-460.0,0.00019726,2]
[375859431,1753763444835,-2171.93,0.00019726,2]
[375859432,1753763444847,-460.0,0.00019726,2]
[375859433,1753763444856,-683.49,0.00019726,2]
[375859434,1753763444866,-460.0,0.00019726,2]
[375859435,1753763444878,-332.48401846,0.00019726,2]
[375859436,1753763444888,-460.0,0.00019726,2]
[375859437,1753763444897,-460.0,0.00019726,2]
[375859438,1753763444907,-460.0,0.00019726,2]
[375859439,1753763444919,-460.0,0.00019726,2]
[375859440,1753763444930,-460.0,0.00019726,2]
[375859441,1753763444940,-460.0,0.00019726,2]
[375859442,1753763444950,-460.0,0.00019726,2]
[375859443,1753763444960,-460.0,0.00019726,2]
[375859444,1753763444969,-460.0,0.00019726,2]
[375859445,1753763444978,-460.0,0.00019726,2]
[375859446,1753763444988,-460.0,0.00019726,2]
[375859447,1753763444999,-460.0,0.00019726,2]
[375859448,1753763445010,-497.05,0.00019726,2]
[375859449,1753763445020,-460.0,0.00019726,2]
[375859450,1753763445030,-2404.12,0.00019726,2]
[375859451,1753763445039,-460.0,0.00019726,2]
[375859452,1753763445049,-460.0,0.00019726,2]
[375859453,1753763445058,-460.0,0.00019726,2]
[375859454,1753763445067,-460.0,0.00019726,2]
[375859455,1753763445077,-460.0,0.00019726,2]
[375859456,1753763445087,-564.31,0.00019726,2]
[375859457,1753763445096,-460.0,0.00019726,2]
[375859458,1753763445106,-460.0,0.00019726,2]
[375859459,1753763445116,-460.0,0.00019726,2]
[375859460,1753763445125,-1489.29,0.00019726,2]
[375859461,1753763445135,-460.0,0.00019726,2]
[375859462,1753763445145,-460.0,0.00019726,2]
[375859463,1753763445155,-460.0,0.00019726,2]
[375859464,1753763445165,-460.0,0.00019726,2]
[375859465,1753763445175,-632.77,0.00019726,2]
[375859466,1753763445184,-460.0,0.00019726,2]
[375859467,1753763445195,-460.0,0.00019726,2]
[375859468,1753763445204,-460.0,0.00019726,2]
[375859470,1753763445213,-1406.09,0.00019726,2]
[375859471,1753763445223,-460.0,0.00019726,2]
[375859472,1753763445233,-460.0,0.00019726,2]
[375859473,1753763445242,-460.0,0.00019726,2]
[375859474,1753763445252,-460.0,0.00019726,2]
[375859475,1753763445262,-706.04,0.00019726,2]
[375859477,1753763445272,-460.0,0.00019726,2]
[375859478,1753763445281,-460.0,0.00019726,2]
[375859479,1753763445291,-1808.84,0.00019726,2]
[375859480,1753763445304,-473.06,0.00019726,2]
[375859481,1753763445313,-460.0,0.00019726,2]
[375859482,1753763445323,-460.0,0.00019726,2]
[375859483,1753763445332,-460.0,0.00019726,2]
[375859484,1753763445342,-442.19460917,0.00019726,2]
[375859485,1753763445352,-460.0,0.00019726,2]
[375859486,1753763445362,-460.0,0.00019726,2]
[375859487,1753763445372,-1309.65,0.00019726,2]
[375859488,1753763445383,-758.29,0.00019726,2]
[375859489,1753763445397,-460.0,0.00019726,2]
[375859490,1753763445406,-460.0,0.00019726,2]
[375859491,1753763445416,-460.0,0.00019726,2]
[375859492,1753763445426,-524.23,0.00019726,2]
[375859493,1753763445436,-617.83,0.00019726,2]
[375859494,1753763445451,-460.0,0.00019726,2]
[375859495,1753763445462,-460.0,0.00019726,2]
[375859496,1753763445472,-460.0,0.00019726,2]
[375859497,1753763445482,-1499.41,0.00019726,2]
[375859498,1753763445492,-1439.13,0.00019726,2]
[375859499,1753763445501,-460.0,0.00019726,2]
[375859500,1753763445511,-262.46234566,0.00019726,2]
[375859501,1753763445520,-666.39,0.00019726,2]
[375859502,1753763445529,-4336.84,0.00019726,2]
[375859503,1753763445539,-465.81467822,0.00019726,2]
[375859504,1753763445713,-460.0,0.00019726,2]
[375859505,1753763445724,-460.0,0.00019726,2]
[375859506,1753763445734,-1784.78,0.00019726,2]
[375859507,1753763445743,-1674.87,0.00019726,2]
[375859508,1753763445753,-460.0,0.00019726,2]
[375859509,1753763445763,-460.0,0.00019726,2]
[375859510,1753763445773,-460.0,0.00019726,2]
[375859511,1753763445783,-683.26,0.00019726,2]
[375859512,1753763445793,-460.0,0.00019726,2]
[375859513,1753763445803,-755.63,0.00019726,2]
[375859514,1753763445812,-460.0,0.00019726,2]
[375859515,1753763445823,-460.0,0.00019726,2]
[375859516,1753763445833,-460.0,0.00019726,2]
[375859517,1753763445843,-467.82381552,0.00019726,2]
[375859518,1753763445852,-2065.79,0.00019726,2]
[375859519,1753763445862,-460.0,0.00019726,2]
[375859520,1753763445873,-529.18,0.00019726,2]
[375859521,1753763445883,-460.0,0.00019726,2]
[375859522,1753763445893,-401.88421159,0.00019726,2]
[375859523,1753763445902,-460.0,0.00019726,2]
[375859524,1753763445912,-460.0,0.00019726,2]
[375859526,1753763445921,-460.0,0.00019726,2]
[375859528,1753763445931,-438.96830718,0.00019756,2]
[375859530,1753763445940,-507.01081272,0.00019773,2]
[375859532,1753763445950,-855.3594813,0.00019789,2]
[375859534,1753763445960,-265.0,0.0001985,2]
[375859535,1753763445969,-4310.0,0.00019885,2]
[375859536,1753763445979,-265.0,0.00019932,2]
[375859537,1753763445988,-454.69923987,0.00019946,2]
[375859538,1753763445998,-12637.12721421,0.00019946,2]
[375859539,1753763446007,-160.0,0.00019946,2]
[375859540,1753763446017,-160.0,0.00019946,2]
[375859541,1753763446027,-160.0,0.00019946,2]
[375859542,1753763446037,-214.91980558,0.00019948,2]
[375859543,1753763446047,-841.06558547,0.00019948,2]
[375859544,1753763446057,-265.0,0.00019954,2]
[375859545,1753763446066,-312.16666667,0.00019991,2]
[375859546,1753763446076,-460.0,0.0002,2]
[375859547,1753763446085,-156.87123587,0.0002,2]
[375859548,1753763446095,-460.0,0.0002,2]
[375859549,1753763446104,-460.0,0.0002,2]
[375859550,1753763446114,-462.55046782,0.0002,2]
[375859552,1753763446125,-460.0,0.0002,2]
[375859554,1753763446135,-512.16421492,0.0002,2]
[375859555,1753763446144,-316.45903582,0.0002,2]
[375859557,1753763446154,-460.0,0.0002,2]
[375859559,1753763446163,-460.0,0.0002,2]
[375859561,1753763446174,-460.0,0.0002,2]
[375859563,1753763446183,-460.0,0.0002,2]
[375859565,1753763446193,-460.0,0.0002,2]
[375859567,1753763446203,-460.0,0.0002,2]
[375859569,1753763446212,-460.0,0.0002,2]
[375859571,1753763446221,-245.26792485,0.0002,2]
[375859573,1753763446230,-460.0,0.0002,2]
[375859575,1753763446240,-520.3,0.0002,2]
[375859577,1753763446250,-460.0,0.0002,2]
[375859579,1753763446259,-460.0,0.0002,2]
[375859581,1753763446269,-460.0,0.0002,2]
[375859583,1753763446279,-460.0,0.0002,2]
[375859585,1753763446288,-511.0,0.0002,2]
[375859587,1753763446298,-460.0,0.0002,2]
[375859589,1753763446307,-460.0,0.0002,2]
[375859591,1753763446317,-460.0,0.0002,2]
[375859593,1753763446326,-460.0,0.0002,2]
[375859595,1753763446336,-460.0,0.0002,2]
[375859597,1753763446345,-460.0,0.0002,2]
[375859599,1753763446355,-460.0,0.0002,2]
[375859601,1753763446364,-466.66481263,0.0002,2]
[375859603,1753763446373,-460.0,0.0002,2]
[375859605,1753763446384,-460.0,0.0002,2]
[375859607,1753763446398,-460.0,0.0002,2]
[375859609,1753763446407,-460.0,0.0002,2]
[375859611,1753763446417,-460.0,0.0002,2]
[375859613,1753763446427,-460.0,0.0002,2]
[375859615,1753763446437,-460.0,0.0002,2]
[375859617,1753763446447,-460.0,0.0002,2]
[375859619,1753763446457,-163.40006145,0.0002,2]
[375859621,1753763446467,-460.0,0.0002,2]
[375859623,1753763446476,-460.0,0.0002,2]
[375859625,1753763446486,-460.0,0.0002,2]
[375859627,1753763446495,-460.0,0.0002,2]
[375859629,1753763446505,-460.0,0.0002,2]
[375859631,1753763446515,-460.0,0.0002,2]
[375859633,1753763446524,-514.06,0.0002,2]
[375859635,1753763446534,-460.0,0.0002,2]
[375859637,1753763446543,-460.0,0.0002,2]
[375859639,1753763446553,-460.0,0.0002,2]
[375859641,1753763446563,-460.0,0.0002,2]
[375859643,1753763446573,-460.0,0.0002,2]
[375859645,1753763446583,-1625.4,0.0002,2]
[375859646,1753763446592,-460.0,0.0002,2]
[375859647,1753763446602,-460.0,0.0002,2]
[375859648,1753763446613,-3945.19,0.0002,2]
[375859649,1753763446632,-460.0,0.0002,2]
[375859650,1753763446642,-460.0,0.0002,2]
[375859651,1753763446651,-460.0,0.0002,2]
[375859652,1753763446660,-603.14,0.0002,2]
[375859653,1753763446669,-460.0,0.0002,2]
[375859654,1753763446679,-460.0,0.0002,2]
[375859655,1753763446688,-460.0,0.0002,2]
[375859656,1753763446697,-771.0,0.0002,2]
[375859657,1753763446707,-616.93,0.0002,2]
[375859658,1753763446716,-2171.93,0.0002,2]
[375859659,1753763446726,-466.51538751,0.0002,2]
[375859660,1753763446736,-683.49,0.0002,2]
[375859661,1753763446745,-460.0,0.0002,2]
[375859662,1753763446755,-460.0,0.0002,2]
[375859663,1753763446764,-467.46191031,0.0002,2]
[375859664,1753763446774,-460.0,0.0002,2]
[375859665,1753763446783,-468.37801871,0.0002,2]
[375859666,1753763446795,-460.0,0.0002,2]
[375859667,1753763446804,-460.0,0.0002,2]
[375859668,1753763446814,-460.0,0.0002,2]
[375859669,1753763446823,-497.05,0.0002,2]
[375859670,1753763446833,-462.37718136,0.0002,2]
[375859671,1753763446842,-2404.12,0.0002,2]
[375859672,1753763446851,-460.0,0.0002,2]
[375859673,1753763446860,-460.0,0.0002,2]
[375859674,1753763446870,-460.0,0.0002,2]
[375859675,1753763446880,-460.0,0.0002,2]
[375859676,1753763446890,-564.31,0.0002,2]
[375859677,1753763446899,-460.0,0.0002,2]
[375859678,1753763446909,-460.0,0.0002,2]
[375859679,1753763446919,-460.0,0.0002,2]
[375859680,1753763446928,-460.0,0.0002,2]
[375859681,1753763446938,-1489.29,0.0002,2]
[375859682,1753763446947,-460.0,0.0002,2]
[375859683,1753763446956,-460.0,0.0002,2]
[375859684,1753763446969,-460.0,0.0002,2]
[375859685,1753763446979,-632.77,0.0002,2]
[375859686,1753763446988,-460.0,0.0002,2]
[375859687,1753763446997,-460.0,0.0002,2]
[375859688,1753763447007,-460.0,0.0002,2]
[375859689,1753763447016,-1406.09,0.0002,2]
[375859690,1753763447025,-460.0,0.0002,2]
[375859691,1753763447034,-7800.0,0.0002,7]
[375859692,1753763447044,-460.0,0.0002,2]
[375859693,1753763447053,-460.0,0.0002,2]
[375859694,1753763447063,-8859.74923358,0.0002,2]
[375859695,1753763447073,-460.0,0.0002,2]
[375859696,1753763447082,-706.04,0.0002,2]
[375859697,1753763447091,-460.0,0.0002,2]
[375859698,1753763447100,-460.0,0.0002,2]
[375859699,1753763447109,-1808.84,0.0002,2]
[375859700,1753763447119,-473.06,0.0002,2]
[375859701,1753763447128,-466.50994166,0.0002,2]
[375859702,1753763447137,-460.0,0.0002,2]
[375859703,1753763447146,-460.0,0.0002,2]
[375859704,1753763447155,-460.0,0.0002,2]
[375859705,1753763447165,-460.0,0.0002,2]
[375859706,1753763447174,-1309.65,0.0002,2]
[375859707,1753763447183,-758.29,0.0002,2]
[375859708,1753763447192,-460.0,0.0002,2]
[375859709,1753763447201,-460.0,0.0002,2]
[375859710,1753763447210,-524.23,0.0002,2]
[375859711,1753763447220,-617.83,0.0002,2]
[375859712,1753763447229,-460.0,0.0002,2]
[375859713,1753763447238,-460.0,0.0002,2]
[375859714,1753763447247,-1499.41,0.0002,2]
[375859715,1753763447256,-1439.13,0.0002,2]
[375859716,1753763447266,-465.06817194,0.0002,2]
[375859717,1753763447275,-666.39,0.0002,2]
[375859718,1753763447285,-4336.84,0.0002,2]
[375859719,1753763447294,-460.0,0.0002,2]
[375859720,1753763447303,-460.0,0.0002,2]
[375859721,1753763447313,-1784.78,0.0002,2]
[375859722,1753763447323,-1674.87,0.0002,2]
[375859723,1753763447332,-460.0,0.0002,2]
[375859724,1753763447341,-460.0,0.0002,2]
[375859725,1753763447351,-468.26229708,0.0002,2]
[375859726,1753763447361,-683.26,0.0002,2]
[375859727,1753763447371,-465.94754947,0.0002,2]
[375859728,1753763447381,-755.63,0.0002,2]
[375859729,1753763447394,-460.0,0.0002,2]
[375859730,1753763447404,-460.0,0.0002,2]
[375859731,1753763447413,-460.0,0.0002,2]
[375859732,1753763447423,-2065.79,0.0002,2]
[375859733,1753763447433,-529.18,0.0002,2]
[375859734,1753763447442,-162.98,0.0002,2]
[375859735,1753763447452,-460.0,0.0002,2]
[375859736,1753763447463,-460.0,0.0002,2]
[375859737,1753763447473,-460.0,0.0002,2]
[375859738,1753763447483,-1000.0,0.00020021,2]
[375859739,1753763447492,-1000.0,0.00020021,2]
[375859740,1753763447503,-265.0,0.00020048,2]
[375859741,1753763447512,-297.0,0.00020053,2]
[375859742,1753763447522,-183.027764,0.00020058,2]
[375859743,1753763447532,-183.027764,0.00020058,2]
[375859744,1753763447542,-151.0,0.00020058,2]
[375859745,1753763447552,-151.0,0.0002006,2]
[375859746,1753763447562,-151.0,0.0002006,2]
[375859747,1753763447572,-265.0,0.00020064,2]
[375859748,1753763447582,-265.0,0.00020164,2]
[375859749,1753763447591,-1755.87322873,0.00020173,2]
[375859750,1753763447601,-947.02,0.00020238,3]
[375859751,1753763447610,-473.52,0.00020238,3]
[375859752,1753763447619,-1013.0774865,0.00020268,2]
[375859753,1753763447629,-460.0,0.00020273,2]
[375859754,1753763447639,-460.0,0.00020273,2]
[375859755,1753763447649,-460.0,0.00020273,2]
[375859756,1753763447662,-460.0,0.00020273,2]
[375859757,1753763447671,-151.660534,0.00020273,2]
[375859758,1753763447681,-460.0,0.00020273,2]
[375859759,1753763447690,-262.15151101,0.00020273,2]
[375859760,1753763447700,-460.0,0.00020273,2]
[375859761,1753763447710,-460.0,0.00020273,2]
[375859762,1753763447719,-460.0,0.00020273,2]
[375859763,1753763447729,-520.3,0.00020273,2]
[375859764,1753763447738,-460.0,0.00020273,2]
[375859765,1753763447748,-460.0,0.00020273,2]
[375859766,1753763447758,-460.0,0.00020273,2]
[375859767,1753763447767,-460.0,0.00020273,2]
[375859768,1753763447777,-460.0,0.00020273,2]
[375859769,1753763447785,-460.0,0.00020273,2]
[375859770,1753763447795,-460.0,0.00020273,2]
[375859771,1753763447804,-460.0,0.00020273,2]
[375859772,1753763447813,-460.0,0.00020273,2]
[375859773,1753763447823,-406.28697748,0.00020273,2]
[375859774,1753763447832,-460.0,0.00020273,2]
[375859775,1753763447842,-460.0,0.00020273,2]
[375859776,1753763447851,-460.0,0.00020273,2]
[375859777,1753763447861,-460.0,0.00020273,2]
[375859778,1753763447870,-460.0,0.00020273,2]
[375859779,1753763447880,-193.529118,0.00020273,2]
[375859780,1753763447890,-193.529118,0.00020273,2]
[375859781,1753763447900,-151.0,0.00020273,2]
[375859782,1753763447910,-460.0,0.00020273,2]
[375859783,1753763447920,-460.0,0.00020273,2]
[375859784,1753763447929,-460.0,0.00020273,2]
[375859785,1753763447938,-460.0,0.00020273,2]
[375859786,1753763447948,-514.06,0.00020273,2]
[375859787,1753763447958,-460.0,0.00020273,2]
[375859788,1753763447967,-460.0,0.00020273,2]
[375859789,1753763447976,-460.0,0.00020273,2]
[375859790,1753763447986,-400.626578,0.00020273,2]
[375859791,1753763447995,-460.0,0.00020273,2]
[375859792,1753763448005,-400.626578,0.00020273,2]
[375859793,1753763448014,-460.0,0.00020273,2]
[375859794,1753763448023,-1625.4,0.00020273,2]
[375859795,1753763448033,-460.0,0.00020273,2]
[375859796,1753763448042,-460.0,0.00020273,2]
[375859797,1753763448052,-3945.19,0.00020273,2]
[375859798,1753763448061,-460.0,0.00020273,2]
[375859799,1753763448071,-460.0,0.00020273,2]
[375859800,1753763448080,-603.14,0.00020273,2]
[375859801,1753763448090,-460.0,0.00020273,2]
[375859802,1753763448109,-460.0,0.00020273,2]
[375859803,1753763448121,-460.0,0.00020273,2]
[375859804,1753763448130,-771.0,0.00020273,2]
[375859805,1753763448142,-616.93,0.00020273,2]
[375859806,1753763448151,-2171.93,0.00020273,2]
[375859807,1753763448162,-683.49,0.00020273,2]
[375859808,1753763448172,-460.0,0.00020273,2]
[375859809,1753763448182,-460.0,0.00020273,2]
[375859810,1753763448191,-460.0,0.00020273,2]
[375859811,1753763448201,-460.0,0.00020273,2]
[375859812,1753763448211,-460.0,0.00020273,2]
[375859813,1753763448220,-460.0,0.00020273,2]
[375859814,1753763448230,-497.05,0.00020273,2]
[375859815,1753763448239,-460.0,0.00020273,2]
[375859816,1753763448249,-2404.12,0.00020273,2]
[375859817,1753763448259,-460.0,0.00020273,2]
[375859818,1753763448269,-460.0,0.00020273,2]
[375859819,1753763448279,-460.0,0.00020273,2]
[375859820,1753763448288,-564.31,0.00020273,2]
[375859821,1753763448298,-372.42501981,0.00020273,2]
[375859822,1753763448308,-460.0,0.00020273,2]
[375859823,1753763448318,-460.0,0.00020273,2]
[375859824,1753763448327,-460.0,0.00020273,2]
[375859825,1753763448337,-1489.29,0.00020273,2]
[375859826,1753763448347,-460.0,0.00020273,2]
[375859827,1753763448357,-460.0,0.00020273,2]
[375859828,1753763448366,-460.0,0.00020273,2]
[375859829,1753763448375,-632.77,0.00020273,2]
[375859830,1753763448388,-529.8861233,0.00020273,2]
[375859831,1753763448398,-460.0,0.00020273,2]
[375859832,1753763448408,-460.0,0.00020273,2]
[375859833,1753763448417,-1406.09,0.00020273,2]
[375859834,1753763448427,-460.0,0.00020273,2]
[375859835,1753763448437,-460.0,0.00020273,2]
[375859836,1753763448447,-460.0,0.00020273,2]
[375859837,1753763448457,-460.0,0.00020273,2]
[375859838,1753763448467,-706.04,0.00020273,2]
[375859839,1753763448477,-460.0,0.00020273,2]
[375859840,1753763448486,-460.0,0.00020273,2]
[375859841,1753763448497,-1808.84,0.00020273,2]
[375859842,1753763448506,-473.06,0.00020273,2]
[375859843,1753763448516,-460.0,0.00020273,2]
[375859844,1753763448527,-460.0,0.00020273,2]
[375859845,1753763448536,-460.0,0.00020273,2]
[375859846,1753763448546,-1309.65,0.00020273,2]
[375859847,1753763448556,-758.29,0.00020273,2]
[375859848,1753763448567,-460.0,0.00020273,2]
[375859849,1753763448576,-460.0,0.00020273,2]
[375859850,1753763448587,-524.23,0.00020273,2]
[375859851,1753763448597,-617.83,0.00020273,2]
[375859852,1753763448607,-460.0,0.00020273,2]
[375859853,1753763448617,-460.0,0.00020273,2]
[375859854,1753763448626,-1499.41,0.00020273,2]
[375859855,1753763448636,-1439.13,0.00020273,2]
[375859856,1753763448646,-666.39,0.00020273,2]
[375859857,1753763448656,-4336.84,0.00020273,2]
[375859858,1753763448792,-460.0,0.00020273,2]
[375859859,1753763448803,-460.0,0.00020273,2]
[375859860,1753763448813,-1784.78,0.00020273,2]
[375859861,1753763448822,-1674.87,0.00020273,2]
[375859862,1753763448832,-460.0,0.00020273,2]
[375859863,1753763448841,-460.0,0.00020273,2]
[375859864,1753763448851,-683.26,0.00020273,2]
[375859865,1753763448862,-755.63,0.00020273,2]
[375859866,1753763448871,-460.0,0.00020273,2]
[375859867,1753763448882,-460.0,0.00020273,2]
[375859868,1753763448892,-460.0,0.00020273,2]
[375859869,1753763448901,-2065.79,0.00020273,2]
[375859870,1753763448911,-529.18,0.00020273,2]
[375859871,1753763448921,-460.0,0.00020273,2]
[375859872,1753763448931,-460.0,0.00020273,2]
[375859873,1753763448940,-460.0,0.00020273,2]
[375859874,1753763448951,-265.0,0.00020276,2]
[375859875,1753763448960,-25000.0,0.00020345,2]
[375859876,1753763448970,-2511.0205882,0.00020345,2]
[375859877,1753763448979,-151.0,0.00020345,2]
[375859878,1753763448989,-151.0,0.00020345,2]
[375859879,1753763448999,-151.0,0.00020345,2]
[375859880,1753763449008,-151.0,0.00020345,2]
[375859881,1753763449018,-151.0,0.00020345,2]
[375859882,1753763449027,-265.0,0.0002036,2]
[375859883,1753763449036,-1152.26994248,0.00020376,2]
[375859884,1753763449047,-168.0,0.00020435,2]
[375859885,1753763449056,-250.02188203,0.00020448,2]
[375859886,1753763449066,-301.38,0.00020538,3]
[375859887,1753763449075,-313.12,0.00020538,3]
[375859888,1753763449086,-313.12,0.00020538,3]
[375859889,1753763449095,-460.0,0.00020547,2]
[375859890,1753763449105,-369.22815066,0.00020547,2]
[375859891,1753763449115,-403.27706805,0.00020547,2]
[375859892,1753763449124,-588.00670403,0.00020547,2]
[375859893,1753763449136,-460.0,0.00020547,2]
[375859894,1753763449146,-460.0,0.00020547,2]
[375859895,1753763449155,-460.0,0.00020547,2]
[375859896,1753763449165,-520.3,0.00020547,2]
[375859897,1753763449175,-460.0,0.00020547,2]
[375859898,1753763449185,-460.0,0.00020547,2]
[375859899,1753763449194,-460.0,0.00020547,2]
[375859900,1753763449204,-337.73874921,0.00020547,2]
[375859901,1753763449214,-460.0,0.00020547,2]
[375859902,1753763449223,-460.0,0.00020547,2]
[375859903,1753763449232,-460.0,0.00020547,2]
[375859904,1753763449242,-460.0,0.00020547,2]
[375859905,1753763449252,-203.05501029,0.00020547,2]
[375859906,1753763449262,-460.0,0.00020547,2]
[375859907,1753763449272,-460.0,0.00020547,2]
[375859908,1753763449281,-460.0,0.00020547,2]
[375859909,1753763449291,-183.027764,0.00020547,2]
[375859910,1753763449300,-183.027764,0.00020547,2]
[375859911,1753763449310,-460.0,0.00020547,2]
[375859912,1753763449320,-460.0,0.00020547,2]
[375859913,1753763449329,-460.0,0.00020547,2]
[375859914,1753763449339,-460.0,0.00020547,2]
[375859915,1753763449349,-514.06,0.00020547,2]
[375859916,1753763449358,-367.49897487,0.00020547,2]
[375859917,1753763449367,-460.0,0.00020547,2]
[375859918,1753763449377,-460.0,0.00020547,2]
[375859919,1753763449390,-460.0,0.00020547,2]
[375859920,1753763449399,-460.0,0.00020547,2]
[375859921,1753763449408,-1625.4,0.00020547,2]
[375859922,1753763449418,-460.0,0.00020547,2]
[375859923,1753763449427,-3945.19,0.00020547,2]
[375859924,1753763449438,-460.0,0.00020547,2]
[375859925,1753763449446,-603.14,0.00020547,2]
[375859926,1753763449456,-460.0,0.00020547,2]
[375859927,1753763449467,-460.0,0.00020547,2]
[375859928,1753763449477,-460.0,0.00020547,2]
[375859929,1753763449487,-771.0,0.00020547,2]
[375859930,1753763449496,-616.93,0.00020547,2]
[375859931,1753763449506,-2171.93,0.00020547,2]
[375859932,1753763449516,-683.49,0.00020547,2]
[375859933,1753763449525,-460.0,0.00020547,2]
[375859934,1753763449535,-460.0,0.00020547,2]
[375859935,1753763449544,-460.0,0.00020547,2]
[375859936,1753763449554,-460.0,0.00020547,2]
[375859937,1753763449564,-460.0,0.00020547,2]
[375859938,1753763449573,-460.0,0.00020547,2]
[375859939,1753763449583,-497.05,0.00020547,2]
[375859940,1753763449592,-2404.12,0.00020547,2]
[375859941,1753763449602,-471.62233797,0.00020547,2]
[375859942,1753763449611,-460.0,0.00020547,2]
[375859943,1753763449621,-460.0,0.00020547,2]
[375859944,1753763449630,-564.31,0.00020547,2]
[375859945,1753763449641,-460.0,0.00020547,2]
[375859946,1753763449651,-460.0,0.00020547,2]
[375859947,1753763449660,-460.0,0.00020547,2]
[375859948,1753763449670,-1489.29,0.00020547,2]
[375859949,1753763449680,-460.0,0.00020547,2]
[375859950,1753763449689,-460.0,0.00020547,2]
[375859951,1753763449699,-460.0,0.00020547,2]
[375859952,1753763449708,-632.77,0.00020547,2]
[375859953,1753763449718,-460.0,0.00020547,2]
[375859954,1753763449727,-1406.09,0.00020547,2]
[375859955,1753763449736,-460.0,0.00020547,2]
[375859956,1753763449746,-460.0,0.00020547,2]
[375859957,1753763449755,-460.0,0.00020547,2]
[375859958,1753763449765,-706.04,0.00020547,2]
[375859959,1753763449774,-460.0,0.00020547,2]
[375859960,1753763449783,-460.0,0.00020547,2]
[375859961,1753763449793,-1808.84,0.00020547,2]
[375859962,1753763449802,-473.06,0.00020547,2]
[375859963,1753763449811,-460.0,0.00020547,2]
[375859964,1753763449821,-460.0,0.00020547,2]
[375859965,1753763449831,-460.0,0.00020547,2]
[375859966,1753763449840,-1309.65,0.00020547,2]
[375859967,1753763449849,-758.29,0.00020547,2]
[375859968,1753763449859,-460.0,0.00020547,2]
[375859969,1753763449868,-460.0,0.00020547,2]
[375859970,1753763449878,-524.23,0.00020547,2]
[375859971,1753763449888,-617.83,0.00020547,2]
[375859972,1753763449898,-460.0,0.00020547,2]
[375859973,1753763449907,-460.0,0.00020547,2]
[375859974,1753763449917,-1499.41,0.00020547,2]
[375859975,1753763449926,-1439.13,0.00020547,2]
[375859976,1753763449936,-666.39,0.00020547,2]
[375859977,1753763449946,-4336.84,0.00020547,2]